bitfinex/quotes_ETHUSD_20250505
["timestamp","ask_amount","ask_price","bid_price","bid_amount"]
[1746454289112,5.52364118,1810.4,1810.3,0.05523137]
[1746454289307,5.52335209,1810.5,1810.2,0.82723483]
[1746454289496,5.52335209,1810.5,1810.3,3.66410789]
[1746454290029,5.52336328,1810.5,1810.3,3.66410789]
[1746454290529,5.52302412,1810.7,1810.3,10.18953618]
[1746454290689,8.8831,1811.0,1810.4,5.57877082]
[1746454290690,5.52258928,1810.8,1810.4,5.57877082]
[1746454290890,5.52255911,1810.8,1810.5,0.8075]
[1746454291124,11.04522086,1810.8,1810.5,0.8075]
[1746454291302,5.52255911,1810.8,1810.5,0.8075]
[1746454291502,5.52255911,1810.8,1810.5,1.44059217]
[1746454291708,5.52229242,1810.9,1810.5,1.44059217]
[1746454292027,8.59054595,1811.1,1810.6,0.05522164]
[1746454292334,8.59054595,1811.1,1810.5,0.8075]
[1746454292335,5.52259211,1810.8,1810.5,0.8075]
[1746454292690,5.52273008,1810.7,1810.5,0.8075]
[1746454293229,5.52259211,1810.8,1810.5,0.8075]
[1746454293439,0.5681,1811.2,1810.6,5.57796931]
[1746454293592,5.52168307,1811.1,1810.7,6.08039331]
[1746454293795,5.52168307,1811.1,1810.9,0.82]
[1746454294107,5.5212852,1811.2,1810.9,0.82]
[1746454294308,5.52171147,1811.1,1810.9,0.82]
[1746454294693,5.52163849,1811.1,1810.9,0.82]
[1746454295108,5.52163849,1811.1,1811.0,0.15848488]
[1746454295512,5.52150626,1811.1,1811.0,0.15848488]
[1746454295908,5.52183881,1811.0,1810.7,0.8196]
[1746454296113,5.52163097,1811.1,1810.8,0.21398557]
[1746454296535,5.52138476,1811.2,1810.8,5.73616596]
[1746454297043,5.52080107,1811.4,1810.9,0.8196]
[1746454297201,5.52045992,1811.5,1811.1,5.52149649]
[1746454297409,5.52045992,1811.5,1811.3,0.7524]
[1746454297608,5.52017633,1811.6,1811.3,0.7524]
[1746454297940,5.52028705,1811.5,1811.4,0.15687266]
[1746454298108,5.52015683,1811.6,1811.3,0.7524]
[1746454298438,11.04036784,1811.6,1811.4,0.15687266]
[1746454298752,5.52028705,1811.5,1811.3,0.7524]
[1746454298987,5.52015683,1811.6,1811.4,0.15560087]
[1746454299282,5.52015683,1811.6,1811.3,1.43497483]
[1746454299459,5.52015683,1811.6,1811.5,0.15545805]
[1746454299660,5.52028705,1811.5,1811.4,0.15560087]
[1746454299861,5.5205918,1811.4,1811.3,0.7524]
[1746454300600,5.52044332,1811.5,1811.3,0.7524]
[1746454300893,5.315,1811.8,1811.3,0.7524]
[1746454301090,5.51950512,1811.8,1811.4,11.09610416]
[1746454301255,5.51950512,1811.8,1811.5,1.10961042]
[1746454301593,5.51950512,1811.8,1811.4,5.52040226]
[1746454301795,5.51992531,1811.7,1811.3,6.27313345]
[1746454302454,5.51992531,1811.7,1811.3,6.27308675]
[1746454302666,5.5205918,1811.4,1811.3,0.7524]
[1746454302863,5.52046201,1811.5,1811.3,0.7524]
[1746454303179,5.51994702,1811.7,1811.4,0.05520099]
[1746454303371,11.03990196,1811.7,1811.3,6.90602869]
[1746454303569,5.51993418,1811.7,1811.3,6.90602869]
[1746454303798,5.51993418,1811.7,1811.4,0.05519504]
[1746454303993,5.51956645,1811.8,1811.4,5.57569196]
[1746454304204,5.51976081,1811.7,1811.5,0.5575692]
[1746454305098,5.51976081,1811.7,1811.3,6.27307375]
[1746454305307,5.51976081,1811.7,1811.3,0.7524]
[1746454305477,5.52009925,1811.6,1811.3,0.7524]
[1746454305804,5.52011316,1811.6,1811.3,0.7524]
[1746454306317,5.5205918,1811.4,1811.3,0.7524]
[1746454306508,11.04104709,1811.5,1811.3,0.7524]
[1746454306712,5.52028705,1811.5,1811.1,5.315]
[1746454307008,5.52120141,1811.2,1811.1,5.315]
[1746454307207,5.5210705,1811.3,1811.1,5.315]
[1746454307444,6.08826091,1811.6,1811.1,11.44884283]
[1746454307707,5.51986007,1811.7,1811.3,5.52067798]
[1746454307890,11.03980146,1811.7,1811.3,5.52067798]
[1746454308209,5.52002243,1811.6,1811.3,5.52067798]
[1746454308408,5.52002243,1811.6,1811.4,0.5520678]
[1746454308903,5.52050078,1811.5,1811.2,0.7992]
[1746454309310,5.52059401,1811.4,1811.2,0.7992]
[1746454309474,5.51938774,1811.8,1811.2,0.85440425]
[1746454309674,5.52030867,1811.5,1811.2,0.85440425]
[1746454310005,11.04089471,1811.5,1811.2,0.85440425]
[1746454310215,5.52069141,1811.4,1811.3,0.14926901]
[1746454310782,5.52102877,1811.3,1811.1,5.315]
[1746454311121,5.52211607,1810.9,1810.7,5.314]
[1746454311280,5.52303103,1810.6,1810.5,0.8134]
[1746454311480,5.52333609,1810.5,1810.3,1.78544947]
[1746454311814,5.52333609,1810.5,1810.1,4.71229483]
[1746454312508,5.52333609,1810.5,1810.2,0.05523476]
[1746454312693,5.52333609,1810.5,1810.2,0.69159392]
[1746454313692,11.04694005,1810.5,1810.2,0.69159392]
[1746454314005,5.52333609,1810.5,1810.2,0.63635916]
[1746454314197,5.52387051,1810.4,1810.1,0.7839]
[1746454314821,5.52304897,1810.6,1810.2,5.57934508]
[1746454315001,5.52304897,1810.6,1810.1,6.30831188]
[1746454315002,5.5230582,1810.6,1810.1,6.30831188]
[1746454315200,0.5681,1810.7,1810.3,5.52384221]
[1746454315411,6.09109458,1810.7,1810.3,5.52384221]
[1746454315824,5.52313297,1810.6,1810.2,0.63083119]
[1746454316039,0.63713516,1810.9,1810.4,6.30062079]
[1746454316190,5.52213269,1810.9,1810.5,10.87536633]
[1746454317111,11.04401337,1811.0,1810.6,5.52280095]
[1746454317295,5.52194442,1811.0,1810.7,0.05522054]
[1746454317495,5.297,1811.2,1810.7,5.57790092]
[1746454317719,5.52136876,1811.2,1810.8,6.88090145]
[1746454317922,5.52105474,1811.3,1810.9,5.57729821]
[1746454318720,5.52060628,1811.4,1811.0,5.52179495]
[1746454319022,5.52099412,1811.3,1811.1,0.05520732]
[1746454319818,5.52060628,1811.4,1811.0,0.05520859]
[1746454320135,5.520546,1811.5,1811.2,5.52118488]
[1746454320332,5.52007745,1811.6,1811.3,0.05520143]
[1746454320533,5.52007745,1811.6,1811.1,6.2814801]
[1746454320534,5.52007745,1811.6,1811.1,6.28145166]
[1746454320736,5.52039362,1811.5,1811.1,0.7601]
[1746454320953,5.5206542,1811.4,1811.1,0.7601]
[1746454321119,5.52039362,1811.5,1811.1,6.28157504]
[1746454321334,5.52089659,1811.3,1811.2,0.6281575]
[1746454321647,5.52117927,1811.3,1811.0,0.61291996]
[1746454322021,5.52046744,1811.5,1811.1,5.52137143]
[1746454322231,5.52041397,1811.5,1811.1,5.5212723]
[1746454322427,5.52070049,1811.4,1811.0,11.60102812]
[1746454322626,5.52041397,1811.5,1811.0,11.60102812]
[1746454322627,5.52045193,1811.5,1811.1,1.16010281]
[1746454322951,5.52017394,1811.6,1811.2,0.0552024]
[1746454323253,5.52061664,1811.4,1811.1,6.68143084]
[1746454323456,5.52042304,1811.5,1811.1,6.68143084]
[1746454324055,5.52060697,1811.4,1811.1,1.16010281]
[1746454324212,5.52060697,1811.4,1810.9,0.8214]
[1746454324213,5.52179796,1811.1,1810.9,0.8214]
[1746454324620,11.04286846,1811.2,1810.9,0.8214]
[1746454324956,5.52169284,1811.1,1810.9,0.8214]
[1746454325118,5.52134552,1811.2,1811.0,0.15565283]
[1746454325316,5.52150626,1811.1,1811.0,0.15565283]
[1746454325620,6.08960626,1811.1,1811.0,0.15565283]
[1746454325833,7.31971711,1811.1,1811.0,0.15565283]
[1746454326147,5.52231514,1810.9,1810.7,0.05521995]
[1746454326518,0.5681,1811.1,1810.7,0.05521995]
[1746454326857,5.52251997,1810.8,1810.5,6.33109249]
[1746454327052,5.52239867,1810.9,1810.5,13.01703203]
[1746454327354,5.52239867,1810.9,1810.5,7.49373848]
[1746454327560,5.52257339,1810.8,1810.5,1.97060925]
[1746454327767,5.52274311,1810.7,1810.5,0.8078]
[1746454328419,5.52242403,1810.8,1810.5,0.8078]
[1746454328619,11.04636538,1810.6,1810.4,5.297]
[1746454328870,5.52333609,1810.5,1810.4,5.297]
[1746454329616,5.52303103,1810.6,1810.4,5.297]
[1746454330260,5.52309276,1810.6,1810.4,5.297]
[1746454331072,5.52268377,1810.8,1810.4,11.9081212]
[1746454331373,5.52214451,1810.9,1810.5,6.33185492]
[1746454331657,5.52214451,1810.9,1810.6,5.52301491]
[1746454331866,5.52201519,1811.0,1810.7,0.05522119]
[1746454332050,5.52222652,1810.9,1810.7,0.05522119]
[1746454332884,5.52256777,1810.8,1810.5,0.7534]
[1746454333039,5.52292696,1810.7,1810.5,0.7534]
[1746454334435,5.52280669,1810.7,1810.5,0.7534]
[1746454336175,11.04584743,1810.7,1810.4,5.297]
[1746454336366,11.04581904,1810.7,1810.4,5.297]
[1746454336535,5.52286327,1810.7,1810.4,5.297]
[1746454336738,5.59118626,1810.9,1810.5,5.57833573]
[1746454337078,18.268,1811.7,1810.8,5.52242102]
[1746454337079,5.52088324,1811.4,1810.8,5.52242102]
[1746454337266,5.52088324,1811.4,1811.0,5.52159508]
[1746454337598,5.52088324,1811.4,1811.1,0.05520634]
[1746454337744,5.52091348,1811.3,1811.0,5.52159508]
[1746454337943,0.5681,1811.7,1811.3,5.52089261]
[1746454338268,5.78704685,1812.5,1811.5,5.5201932]
[1746454338269,0.40667928,1812.3,1811.5,5.5201932]
[1746454338466,11.0384002,1811.9,1811.6,0.05518867]
[1746454338642,5.51952832,1811.8,1811.4,6.0719]
[1746454338842,6.08716838,1811.9,1811.4,6.0719]
[1746454339088,5.52028705,1811.5,1811.1,6.34184765]
[1746454339391,5.52028705,1811.5,1811.2,5.93218477]
[1746454339974,5.52011076,1811.6,1811.3,0.05520277]
[1746454340179,5.51956679,1811.8,1811.4,5.65941708]
[1746454340380,5.51956679,1811.8,1811.5,0.81299509]
[1746454340558,11.03918437,1811.8,1811.6,0.13856718]
[1746454340992,5.51956679,1811.8,1811.6,0.13856718]
[1746454341181,5.51949989,1811.8,1811.6,0.13856718]
[1746454341493,5.51914615,1811.9,1811.6,0.13856718]
[1746454341682,5.51941009,1811.8,1811.6,0.78574334]
[1746454341867,5.51941009,1811.8,1811.6,0.13856718]
[1746454342062,0.5681,1812.1,1811.6,0.13856718]
[1746454342292,0.5681,1812.1,1811.7,0.05519163]
[1746454342477,5.51897528,1812.0,1811.7,0.05519163]
[1746454342693,5.51906838,1811.9,1811.8,0.13828162]
[1746454343055,5.51897528,1812.0,1811.6,5.51997441]
[1746454343385,11.03800204,1812.0,1811.7,0.74560956]
[1746454343587,5.51907919,1811.9,1811.7,0.69042183]
[1746454344094,5.51896462,1812.0,1811.7,0.74561111]
[1746454344299,11.03800653,1812.0,1811.7,0.69042183]
[1746454344455,5.51909119,1811.9,1811.7,0.69042183]
[1746454344655,5.51896462,1812.0,1811.7,0.69042183]
[1746454345390,5.51908722,1811.9,1811.7,0.69042183]
[1746454345596,5.51853723,1812.1,1811.8,5.51935166]
[1746454345768,5.51853723,1812.1,1811.9,0.74404658]
[1746454346090,5.51876379,1812.0,1811.9,0.13692712]
[1746454346497,5.51876379,1812.0,1811.8,0.8166]
[1746454346665,5.51876379,1812.0,1811.9,0.13692712]
[1746454346999,5.51876379,1812.0,1811.8,0.8166]
[1746454347302,5.51937299,1811.8,1811.7,5.83199744]
[1746454347505,5.51937299,1811.8,1811.7,0.55199744]
[1746454347800,5.5198537,1811.7,1811.5,6.112]
[1746454348664,5.51998233,1811.6,1811.5,5.28]
[1746454349391,5.52089659,1811.3,1811.1,3.70006729]
[1746454349590,5.52120141,1811.2,1811.1,8.98006729]
[1746454349790,5.5217751,1811.1,1810.9,0.7991]
[1746454349955,5.5217751,1811.1,1810.9,1.30423084]
[1746454350468,5.52181115,1811.0,1810.9,0.50513084]
[1746454350674,5.52181115,1811.0,1810.8,3.7552845]
[1746454351498,5.52168571,1811.1,1810.8,3.7552845]
[1746454351794,11.04346661,1811.1,1810.8,3.7552845]
[1746454351997,5.52195203,1811.0,1810.8,3.7552845]
[1746454352196,5.52211607,1810.9,1810.8,3.70006729]
[1746454352981,5.52211607,1810.9,1810.6,5.33522412]
[1746454352982,5.52250656,1810.8,1810.6,5.33522412]
[1746454353402,5.52211607,1810.9,1810.6,5.33522412]
[1746454353714,11.04516755,1810.8,1810.6,5.33522412]
[1746454353862,5.52272601,1810.7,1810.6,5.28]
[1746454354201,5.52272601,1810.7,1810.6,5.41797611]
[1746454354782,5.52254733,1810.8,1810.6,5.41797611]
[1746454354783,5.52252573,1810.8,1810.6,5.41797611]
[1746454355160,6.08977656,1811.1,1810.6,10.94082975]
[1746454355377,5.52173157,1811.1,1810.7,5.57784573]
[1746454355676,5.52173157,1811.1,1810.8,0.13769024]
[1746454355864,5.52211607,1810.9,1810.8,0.70371832]
[1746454356062,5.52211607,1810.9,1810.8,0.13769024]
[1746454356272,5.52201633,1811.0,1810.8,0.13769024]
[1746454356477,5.52201633,1811.0,1810.6,10.80283943]
[1746454356664,5.52201633,1811.0,1810.9,0.13806708]
[1746454356892,5.52212161,1810.9,1810.6,10.80302162]
[1746454357100,5.52212161,1810.9,1810.7,1.08030216]
[1746454357400,5.52183408,1811.0,1810.7,1.13552162]
[1746454357598,5.52183408,1811.0,1810.7,6.65818999]
[1746454357799,5.52183408,1811.0,1810.7,1.13552162]
[1746454358001,5.52242102,1810.8,1810.6,5.28]
[1746454358206,5.52272601,1810.7,1810.6,5.28]
[1746454358402,5.52303103,1810.6,1810.4,18.271]
[1746454358602,5.52316636,1810.6,1810.4,18.271]
[1746454358937,5.52316636,1810.6,1810.3,5.281]
[1746454359105,5.52290215,1810.7,1810.4,0.58332973]
[1746454359808,11.04521792,1810.8,1810.5,0.7748]
[1746454360102,5.52303103,1810.6,1810.5,0.7748]
[1746454360302,5.52276973,1810.7,1810.5,0.7748]
[1746454361272,5.52254759,1810.8,1810.5,0.7748]
[1746454361470,0.5681,1811.5,1810.6,5.5781547]
[1746454361673,5.52182402,1811.0,1810.7,6.08043203]
[1746454361908,6.08838705,1811.5,1810.9,6.28724926]
[1746454361909,5.52101916,1811.3,1810.9,6.28724926]
[1746454362115,5.52101916,1811.3,1811.0,0.05520838]
[1746454362412,5.52110677,1811.3,1810.9,0.7653]
[1746454362608,5.5211822,1811.3,1810.9,6.28724529]
[1746454362812,5.5211822,1811.3,1811.0,0.62872453]
[1746454363018,5.52150626,1811.1,1811.0,0.62872453]
[1746454363221,5.52211607,1810.9,1810.8,5.281]
[1746454363788,5.52211607,1810.9,1810.8,5.41129488]
[1746454364320,5.52202594,1811.0,1810.8,5.41129488]
[1746454364690,5.52211607,1810.9,1810.8,5.41129488]
[1746454366223,5.52211607,1810.9,1810.8,0.13029488]
[1746454366224,5.59114307,1810.9,1810.8,0.13029488]
[1746454366436,5.52269652,1810.8,1810.5,5.33622769]
[1746454366727,5.52269652,1810.8,1810.5,6.55797343]
[1746454366896,5.52265683,1810.8,1810.5,6.55797343]
[1746454367104,11.04537283,1810.8,1810.5,6.55797343]
[1746454367425,5.5227477,1810.7,1810.5,6.55797343]
[1746454367620,5.52233563,1810.9,1810.5,12.08119105]
[1746454367843,5.52251108,1810.8,1810.6,1.20811911]
[1746454368035,5.52251108,1810.8,1810.5,6.55797351]
[1746454368510,5.52290107,1810.7,1810.5,6.55797351]
[1746454368695,5.52290107,1810.7,1810.5,5.281]
[1746454369539,11.04521912,1810.8,1810.5,5.281]
[1746454369737,5.52223287,1810.9,1810.6,6.27612729]
[1746454369908,5.52223287,1810.9,1810.6,0.7531]
[1746454370265,5.52223287,1810.9,1810.7,0.13159268]
[1746454370397,5.52242102,1810.8,1810.7,0.13159268]
[1746454370947,5.52317764,1810.6,1810.4,0.8166]
[1746454371150,5.52284284,1810.7,1810.4,0.8166]
[1746454371303,5.52284284,1810.7,1810.4,0.87182916]
[1746454371503,5.52284284,1810.7,1810.4,7.56312039]
[1746454371818,5.52284284,1810.7,1810.4,2.03948555]
[1746454372017,5.52249846,1810.8,1810.4,7.56307034]
[1746454372227,5.52249846,1810.8,1810.4,7.56295308]
[1746454372428,5.52249846,1810.8,1810.4,7.56292458]
[1746454372750,5.52243127,1810.8,1810.5,6.2793481]
[1746454372901,5.52243127,1810.8,1810.5,0.75629246]
[1746454373503,5.52243127,1810.8,1810.5,6.27954061]
[1746454373504,5.52243382,1810.8,1810.5,6.27954061]
[1746454374443,5.52277674,1810.7,1810.5,0.75629246]
[1746454375022,6.08968731,1811.1,1810.5,0.05522741]
[1746454375242,5.52259283,1810.8,1810.5,0.05522741]
[1746454375646,5.52259283,1810.8,1810.4,7.50770227]
[1746454375647,5.52284512,1810.7,1810.4,1.98425639]
[1746454375848,5.52284512,1810.7,1810.5,0.05522746]
[1746454376312,5.52305542,1810.6,1810.4,1.98425639]
[1746454376502,5.52292383,1810.7,1810.4,1.98425639]
[1746454376706,5.52305138,1810.6,1810.4,1.98425639]
[1746454377003,5.52333609,1810.5,1810.3,5.281]
[1746454377211,5.59268413,1810.4,1810.3,5.281]
[1746454377520,5.52364118,1810.4,1810.3,5.281]
[1746454378555,5.52455665,1810.1,1809.9,5.265]
[1746454378760,5.52486187,1810.0,1809.9,5.265]
[1746454379769,5.59392439,1810.0,1809.9,5.265]
[1746454380119,5.52486187,1810.0,1809.9,5.265]
[1746454380956,5.59392724,1810.0,1809.9,5.265]
[1746454381155,5.52486187,1810.0,1809.9,5.265]
[1746454381366,5.59392725,1810.0,1809.9,5.265]
[1746454381565,5.52472071,1810.1,1809.9,5.265]
[1746454381921,5.52486187,1810.0,1809.9,5.265]
[1746454384826,5.59392549,1810.0,1809.9,5.265]
[1746454385169,11.04949429,1810.1,1809.9,5.40235876]
[1746454385352,5.52486187,1810.0,1809.9,5.40235876]
[1746454386171,5.59392458,1810.0,1809.9,5.40235876]
[1746454386343,5.52486187,1810.0,1809.9,5.40235876]
[1746454386538,5.52468514,1810.1,1809.9,5.40235876]
[1746454386753,5.52486187,1810.0,1809.9,5.40235876]
[1746454387130,5.59392501,1810.0,1809.9,5.40235876]
[1746454387435,6.70578611,1810.0,1809.9,5.40235876]
[1746454387629,6.70578611,1810.0,1809.9,0.13735876]
[1746454387830,5.52606555,1809.7,1809.5,5.267]
[1746454388033,5.52608311,1809.6,1809.5,5.267]
[1746454388266,5.52645854,1809.5,1809.3,0.7872]
[1746454388435,5.52608311,1809.6,1809.3,0.7872]
[1746454388638,5.52649039,1809.5,1809.3,0.7872]
[1746454388943,5.52656941,1809.5,1809.3,0.7872]
[1746454389353,5.52620829,1809.6,1809.3,0.7872]
[1746454389673,5.52669393,1809.4,1809.2,5.267]
[1746454390170,5.52653055,1809.5,1809.2,5.267]
[1746454390377,5.52628258,1809.6,1809.2,11.40894605]
[1746454390573,5.52628258,1809.6,1809.2,5.88167681]
[1746454390574,5.52620131,1809.6,1809.2,5.88167681]
[1746454390793,5.52689107,1809.4,1809.2,5.267]
[1746454391563,5.52655935,1809.5,1809.2,5.267]
[1746454391869,5.52676112,1809.4,1809.2,5.267]
[1746454392232,5.52657646,1809.5,1809.2,5.267]
[1746454392669,5.52642679,1809.5,1809.2,5.267]
[1746454392890,5.52594397,1809.7,1809.2,5.93141544]
[1746454393064,5.52594397,1809.7,1809.4,0.8202]
[1746454393387,5.52611022,1809.6,1809.4,0.8202]
[1746454393690,5.52663417,1809.5,1809.2,6.0872]
[1746454394454,8.94484736,1809.9,1809.2,11.61428919]
[1746454394672,8.94484736,1809.9,1809.3,1.16142892]
[1746454394673,5.52620976,1809.6,1809.3,1.16142892]
[1746454394981,5.52662081,1809.5,1809.2,6.0872]
[1746454395172,11.05330341,1809.5,1809.2,6.0872]
[1746454395481,5.52662081,1809.5,1809.2,6.0872]
[1746454395684,11.05324592,1809.5,1809.2,6.0872]
[1746454395860,5.5267501,1809.4,1809.2,5.267]
[1746454396048,11.05369579,1809.4,1809.2,5.267]
[1746454396247,5.5267501,1809.4,1809.2,5.267]
[1746454397081,5.59583517,1809.4,1809.2,5.267]
[1746454397281,5.5267501,1809.4,1809.2,5.267]
[1746454397486,0.06908778,1809.6,1809.2,5.7937]
[1746454397487,5.5265573,1809.5,1809.2,5.7937]
[1746454397984,5.52699939,1809.3,1809.2,5.267]
[1746454398184,5.59609093,1809.3,1809.2,5.267]
[1746454398494,5.59609093,1809.3,1808.8,5.268]
[1746454398692,11.05504784,1809.2,1808.8,10.85169637]
[1746454398897,5.52762636,1809.1,1808.8,10.85169637]
[1746454399193,5.52762636,1809.1,1808.8,7.04211218]
[1746454399494,5.52822157,1808.9,1808.8,7.04211579]
[1746454399694,5.52792962,1809.0,1808.8,5.268]
[1746454400196,5.52771156,1809.1,1808.9,0.13848516]
[1746454400401,11.05556689,1809.1,1808.8,5.268]
[1746454400554,5.52771156,1809.1,1808.9,0.13848516]
[1746454400756,5.52791597,1809.0,1808.8,5.268]
[1746454400977,5.52791597,1809.0,1808.9,0.13848516]
[1746454401486,5.52791597,1809.0,1808.8,5.268]
[1746454401709,5.52791597,1809.0,1808.9,0.13848516]
[1746454401896,6.09601597,1809.0,1808.9,0.13848516]
[1746454402096,6.09601597,1809.0,1808.6,5.94317206]
[1746454402299,5.52791597,1809.0,1808.9,0.13848516]
[1746454402602,5.52791597,1809.0,1808.6,7.69743701]
[1746454402769,5.52791597,1809.0,1808.9,0.13848516]
[1746454402969,5.52836447,1808.9,1808.6,2.168497]
[1746454403168,5.52791597,1809.0,1808.6,7.69749891]
[1746454403697,11.05611827,1809.0,1808.6,7.69749891]
[1746454403908,6.09560443,1809.2,1808.8,5.52835052]
[1746454404066,5.269,1809.4,1809.0,5.52776788]
[1746454404067,5.52689544,1809.4,1809.0,5.52776788]
[1746454404253,5.52713075,1809.3,1809.1,0.05527208]
[1746454404450,5.52713075,1809.3,1809.0,5.52787955]
[1746454405097,5.5269716,1809.4,1809.1,5.5276032]
[1746454405323,5.52591689,1809.7,1809.3,5.52680848]
[1746454405607,5.52591689,1809.7,1809.3,5.52679058]
[1746454405979,5.52562698,1809.8,1809.3,5.252]
[1746454406164,5.52562698,1809.8,1809.4,6.39629937]
[1746454406165,5.52561549,1809.8,1809.4,6.39629937]
[1746454406363,5.52561549,1809.8,1809.5,6.16601116]
[1746454406601,5.52561549,1809.8,1809.5,0.63962994]
[1746454406813,5.52558922,1809.8,1809.5,0.63962994]
[1746454407366,5.52517564,1809.9,1809.6,5.52599025]
[1746454407567,5.52547984,1809.8,1809.5,0.63962994]
[1746454407875,5.52578462,1809.7,1809.4,0.8145]
[1746454408606,5.52512942,1810.0,1809.4,0.8145]
[1746454408780,5.52598058,1809.7,1809.4,0.8145]
[1746454409118,5.59429677,1809.9,1809.4,0.8145]
[1746454409119,5.52625146,1809.6,1809.4,0.8145]
[1746454409269,5.52669393,1809.4,1809.3,5.252]
[1746454409468,3.5681,1809.9,1809.3,11.3847246]
[1746454409685,5.52598259,1809.7,1809.3,11.3847246]
[1746454409880,5.52637636,1809.6,1809.3,5.85786]
[1746454410212,5.52638916,1809.5,1809.3,5.252]
[1746454410369,5.52633686,1809.6,1809.3,5.252]
[1746454410571,5.52590458,1809.7,1809.3,10.77897859]
[1746454410975,5.52590458,1809.7,1809.3,5.252]
[1746454411180,5.52618484,1809.6,1809.3,5.252]
[1746454411464,5.52618484,1809.6,1809.3,6.96328462]
[1746454411866,5.52641647,1809.5,1809.3,5.252]
[1746454412100,5.52669393,1809.4,1809.3,5.252]
[1746454412300,11.05307229,1809.5,1809.3,5.252]
[1746454412506,5.52669393,1809.4,1809.3,5.252]
[1746454413316,5.52657521,1809.5,1809.3,5.252]
[1746454413480,5.52669393,1809.4,1809.2,0.8066]
[1746454413671,5.52669393,1809.4,1808.8,0.8048]
[1746454413672,5.52803901,1809.0,1808.8,0.8048]
[1746454414025,5.52778681,1809.1,1808.8,0.8048]
[1746454414215,5.52778681,1809.1,1808.8,0.86007836]
[1746454414906,5.52810248,1809.0,1808.8,0.8048]
[1746454415113,5.52822157,1808.9,1808.7,5.251]
[1746454415523,5.52811783,1809.0,1808.8,0.1366644]
[1746454416224,0.5681,1809.2,1808.8,0.67543084]
[1746454416393,5.5277466,1809.1,1808.8,0.67543084]
[1746454416588,5.5277466,1809.1,1808.8,0.1366644]
[1746454416988,11.05562628,1809.1,1808.8,0.1366644]
[1746454417217,10.60914243,1809.4,1808.8,0.1366644]
[1746454417218,5.52822153,1809.0,1808.8,0.1366644]
[1746454417414,5.52811671,1809.0,1808.8,0.1366644]
[1746454418289,5.52775072,1809.1,1808.8,0.1366644]
[1746454418496,5.52810383,1809.0,1808.8,0.1366644]
[1746454418984,10.60919699,1809.4,1808.8,0.1366644]
[1746454419230,5.52822157,1808.9,1808.8,0.1366644]
[1746454419730,5.59732441,1808.9,1808.8,0.1366644]
[1746454420016,5.52822157,1808.9,1808.8,0.1366644]
[1746454420830,11.54217515,1808.9,1808.8,0.1366644]
[1746454421032,5.52883286,1808.7,1808.6,0.4141468]
[1746454421185,5.52883286,1808.7,1808.6,0.54668484]
[1746454421186,6.76050924,1808.7,1808.6,0.54668484]
[1746454421585,5.5979505,1808.7,1808.6,0.54668484]
[1746454423919,5.52844076,1808.9,1808.6,0.54668484]
[1746454424116,5.52805026,1809.0,1808.6,0.6019726]
[1746454424334,5.52864285,1808.8,1808.6,0.54668484]
[1746454424529,5.52864285,1808.8,1808.6,0.60196947]
[1746454424833,5.52808807,1809.0,1808.6,6.76560638]
[1746454424834,5.52805055,1809.0,1808.6,6.76560638]
[1746454425035,5.5283637,1808.9,1808.6,1.23650391]
[1746454425414,5.52805055,1809.0,1808.6,6.82091756]
[1746454425810,5.52805055,1809.0,1808.7,5.52882283]
[1746454426004,0.5681,1809.2,1808.8,0.13456154]
[1746454426205,5.52806173,1809.0,1808.8,0.13456154]
[1746454426434,5.52781991,1809.1,1808.8,0.13456154]
[1746454426606,5.5972311,1809.0,1808.8,0.13456154]
[1746454426806,5.52813166,1809.0,1808.8,0.13456154]
[1746454427242,5.52814043,1809.0,1808.8,0.13456154]
[1746454427449,5.59732677,1808.9,1808.8,0.13456154]
[1746454427747,5.52883286,1808.7,1808.6,0.4141468]
[1746454428117,5.52869666,1808.8,1808.6,0.4141468]
[1746454428518,5.52883286,1808.7,1808.6,0.4141468]
[1746454429329,6.7036987,1808.7,1808.6,0.4141468]
[1746454430246,6.7036987,1808.7,1808.6,0.54685805]
[1746454432272,7.2717987,1808.7,1808.6,0.54685805]
[1746454432632,6.7036987,1808.7,1808.6,0.54685805]
[1746454434582,7.2717987,1808.7,1808.6,0.54685805]
[1746454434734,7.8217987,1808.7,1808.6,0.54685805]
[1746454435591,7.2717987,1808.7,1808.6,0.54685805]
[1746454437581,6.16604575,1808.7,1808.6,0.54685805]
[1746454442441,6.71604575,1808.7,1808.6,0.54685805]
[1746454443869,6.71604575,1808.7,1808.6,0.4141468]
[1746454444177,6.71604575,1808.7,1808.6,0.55251784]
[1746454445045,6.16604575,1808.7,1808.6,0.55251784]
[1746454445238,7.97256252,1808.7,1808.6,0.55251784]
[1746454446644,7.40446252,1808.7,1808.6,0.55251784]
[1746454447363,5.59794575,1808.7,1808.6,0.55251784]
[1746454447961,5.59795204,1808.7,1808.6,0.55251784]
[1746454449384,0.06911918,1808.7,1808.6,0.55251784]
[1746454449580,5.52883286,1808.7,1808.6,0.55251784]
[1746454449966,5.52834388,1808.9,1808.6,1.37761784]
[1746454450143,5.52883286,1808.7,1808.6,1.37761784]
[1746454450484,5.52874521,1808.8,1808.6,1.37761784]
[1746454450643,5.52883286,1808.7,1808.6,1.37761784]
[1746454451282,5.52874521,1808.8,1808.6,1.37761784]
[1746454451590,5.52809139,1809.0,1808.6,6.90658145]
[1746454451763,5.52809139,1809.0,1808.7,0.69065815]
[1746454452166,5.52749978,1809.2,1808.9,0.7702]
[1746454452480,5.52763072,1809.1,1809.0,0.13577656]
[1746454453355,11.05484659,1809.2,1809.0,0.13577656]
[1746454453555,5.52761041,1809.1,1809.0,0.13577656]
[1746454454396,5.52727137,1809.3,1809.0,0.13577656]
[1746454454556,5.52727137,1809.3,1809.1,0.8103]
[1746454454862,5.52654191,1809.5,1809.2,0.13069718]
[1746454455061,5.52590217,1809.7,1809.4,0.8103]
[1746454455292,5.52590217,1809.7,1809.5,0.12894007]
[1746454455901,5.52539113,1809.9,1809.5,0.18419937]
[1746454456066,5.52503153,1810.0,1809.6,5.5259858]
[1746454456254,5.52503153,1810.0,1809.7,0.95338033]
[1746454456681,5.52547242,1809.8,1809.7,0.95338033]
[1746454456997,5.5263885,1809.5,1809.4,0.8191]
[1746454457356,5.5263885,1809.5,1809.4,0.94650968]
[1746454458283,5.5260902,1809.6,1809.4,0.94650968]
[1746454458499,5.59517363,1809.6,1809.4,0.94650968]
[1746454458795,5.5256196,1809.8,1809.4,1.00177636]
[1746454458951,5.52580574,1809.7,1809.4,1.00177636]
[1746454459153,5.52580574,1809.7,1809.4,1.65463239]
[1746454459667,5.52535307,1809.9,1809.5,5.52637304]
[1746454459858,5.59467159,1809.8,1809.6,0.12712343]
[1746454460059,5.59467159,1809.8,1809.4,7.05375182]
[1746454460274,5.59467159,1809.8,1809.5,0.12726655]
[1746454460477,5.59467159,1809.8,1809.5,0.84536839]
[1746454461199,0.06907574,1809.8,1809.5,6.37172388]